[Event "Polish University-ch Teams 2024"]
[Site "Lublin"]
[Date "2024.02.25"]
[Round "7.6"]
[White "Furtak, Joanna"]
[Black "Kubicka, Anna"]
[Result "0-1"]
[ECO "C13"]
[WhiteElo "1883"]
[BlackElo "2278"]
[Annotator "RC"]
[PlyCount "111"]
[EventDate "2024.02.22"]
[EventType "team-tourn"]
[EventCountry "POL"]
[SourceTitle "playchess.com"]
[Source "ChessBase"]
[SourceQuality "1"]
[TimeControl "900+5"]

1. d4 {[%emt 0:00:02]} Nf6 {[%emt 0:00:01]} 2. Nc3 {[%emt 0:00:02]} d5 {[%emt 0:00:03]} 3. Bg5 {[%emt 0:00:02]} e6 {[%emt 0:00:07]} 4. e4 {[%emt 0:00:02]} dxe4 {[%emt 0:00:09]} 5. Nxe4 {[%emt 0:00:01]} Be7 {[%emt 0:00:04]} 6. Bxf6 {[%emt 0:00:06]} Bxf6 {[%emt 0:00:02]} 7. Nf3 {[%emt 0:00:06]} O-O {[%emt 0:00:23]} 8. Be2 {[%emt 0:00:12]} Be7 {[%emt 0:01:04]} 9. O-O {[%emt 0:00:17]} Nd7 {[%emt 0:00:08]} 10. Qd2 {[%emt 0:01:19]} Nf6 {[%emt 0:00:19]} 11. Nxf6+ {[%emt 0:01:18]} Bxf6 {[%emt 0:00:02]} 12. Rfd1 {[%emt 0:00:40]} b6 {[%emt 0:00:22]} 13. Ne5 {[%emt 0:03:11]} Bb7 {[%emt 0:00:29]} 14. Bf3 {[%emt 0:00:12]} Bxf3 {[%emt 0:00:02]} 15. Nxf3 {[%emt 0:00:02]} Qd5 {[%emt 0:00:16]} 16. b3 {[%emt 0:03:24]} Rfd8 {[%emt 0:00:18]} 17. Rac1 {[%emt 0:00:30]} Qe4 {[%emt 0:03:27]} 18. Qe3 {[%emt 0:00:59]} Qxe3 {[%emt 0:01:44]} 19. fxe3 {[%emt 0:00:02]} Rd7 {[%emt 0:00:13]} 20. Rd3 {[%emt 0:00:25]} Rad8 {[%emt 0:00:26]} 21. Rcd1 {[%emt 0:00:01]} Kf8 {[%emt 0:01:55]} 22. Kf2 {[%emt 0:00:23]} h5 {[%emt 0:00:56]} 23. h4 {[%emt 0:02:01]} c5 {[%emt 0:00:15]} 24. dxc5 {[%emt 0:00:50]} Rxd3 {[%emt 0:00:01]} 25. Rxd3 {[%emt 0:00:36]} Rc8 {[%emt 0:01:34]} 26. cxb6 {[%emt 0:00:16]} Rxc2+ {[%emt 0:00:01]} 27. Rd2 {[%emt 0:00:02]} Rxd2+ {[%emt 0:00:04]} 28. Nxd2 {[%emt 0:00:01]} axb6 {[%emt 0:00:01]} 29. g3 {[%emt 0:00:08]} Ke7 {[%emt 0:00:02]} 30. Kf3 {[%emt 0:00:07]} Bc3 {[%emt 0:00:21]} 31. Nc4 {[%emt 0:00:14]} b5 {[%emt 0:00:03]} 32. Na3 {[%emt 0:00:02]} b4 {[%emt 0:00:06]} 33. Nb1 {[%emt 0:00:01]} Be1 {[%emt 0:00:05]} 34. a3 {[%emt 0:00:06]} bxa3 {[%emt 0:02:01]} 35. Nxa3 {[%emt 0:00:01]} Kd6 {[%emt 0:00:02]} 36. Nc2 {[%emt 0:00:05]} Bc3 {[%emt 0:00:05]} 37. e4 {[%emt 0:00:09]} Ke5 {[%emt 0:00:26]} 38. Ke3 {[%emt 0:00:07]} Ba5 {[%emt 0:00:10]} 39. Kd3 {[%emt 0:00:12]} Bc7 {[%emt 0:00:14]} 40. Ke3 {[%emt 0:00:02]} g6 {[%emt 0:00:06]} 41. Kf3 {[%emt 0:00:07]} f5 {[%emt 0:00:05]} 42. exf5 {[%emt 0:00:01]} gxf5 {[%emt 0:00:01]} 43. Ke3 {[%emt 0:00:08]} Bb6+ {[%emt 0:00:02]} 44. Kf3 {[%emt 0:00:01]} Kd5 {[%emt 0:00:05]} 45. Ne3+ {[%emt 0:00:07]} Bxe3 {[%emt 0:00:02]} 46. Kxe3 {[%emt 0:00:01]} e5 {[%emt 0:00:04]} 47. Kd3 {[%emt 0:00:01]} Kc5 {[%emt 0:00:02]} 48. Kc3 {[%emt 0:00:05]} e4 {[%emt 0:00:04]} 49. b4+ {[%emt 0:00:05]} Kd5 {[%emt 0:00:03]} 50. Kb3 {[%emt 0:00:10]} Kd4 {[%emt 0:00:03]} 51. Ka4 {[%emt 0:00:11]} e3 {[%emt 0:00:03]} 52. b5 {[%emt 0:00:01]} e2 {[%emt 0:00:03]} 53. b6 {[%emt 0:00:01]} e1=Q {[%emt 0:00:46]} 54. Kb5 {[%emt 0:00:02]} Kd5 {[%emt 0:00:00]} 55. b7 {[%emt 0:00:02]} Qb1+ {[%emt 0:00:00]} 56. Ka6 {[%emt 0:00:01]} 0-1

[Event "Polish University-ch Teams 2024"]
[Site "Lublin"]
[Date "2024.02.25"]
[Round "7.7"]
[White "Mis, Mieszko"]
[Black "Baum, Jonasz"]
[Result "0-1"]
[ECO "B23"]
[WhiteElo "2325"]
[BlackElo "2400"]
[Annotator "TA"]
[PlyCount "100"]
[EventDate "2024.02.22"]
[EventType "team-tourn"]
[EventCountry "POL"]
[SourceTitle "playchess.com"]
[Source "ChessBase"]
[SourceQuality "1"]
[TimeControl "900+5"]

{[%evp 17,99,-35,0,-72,-17,-37,-46,-25,-22,-36,-13,-38,-38,-27,-42,-45,-42,-39,-33,-37,-36,-162,-88,-196,-186,-159,-156,-141,-66,-69,-59,-77,-59,-136,-145,-138,-139,-141,-132,-204,-131,-131,-117,-135,0,-133,-131,-154,-137,-141,-138,-75,0,-88,-97,-162,-165,-210,-189,-252,-239,-271,-240,-301,-272,-256,-294,-341,-281,-351,-339,-512,-491,-522,-508,-795,-745,-1206,-1169,-29987,-29970,-29998,-29999,-29999]} 1. e4 {[%emt 0:00:13]} c5 {[%emt 0:00:00]} 2. Nc3 {[%emt 0:00:14]} d6 {[%emt 0:00:02]} 3. f4 {[%emt 0:00:34]} g6 {[%emt 0:00:02]} 4. Nf3 {[%emt 0:00:06]} Bg7 {[%emt 0:00:01]} 5. Bc4 {[%emt 0:00:25]} Nc6 {[%emt 0:00:33]} 6. O-O {[%emt 0:00:25]} e6 {[%emt 0:00:04]} 7. d3 {[%emt 0:00:24]} Nge7 {[%emt 0:00:07]} 8. a3 {[%emt 0:00:20]} O-O {[%emt 0:00:50]} 9. Qe1 {[%emt 0:00:24]} Nd4 {[%emt 0:00:06] B23: Closed Sicilian: Lines without g3.} 10. Qf2 {[%emt 0:01:10]} (10. Nxd4 $11 cxd4 11. Nd1) 10... Nec6 {[%emt 0:02:24]} (10... d5 $17 11. Ba2 b6) 11. Kh1 {[%emt 0:00:34]} Nxf3 $146 {[%emt 0:00:04]} ({Predecessor:} 11... a6 12. Ne1 b5 13. Ba2 Bb7 14. f5 exf5 15. exf5 Nxf5 16. Nd5 Bd4 17. Qe2 Qh4 18. Rf3 Rae8 19. Be3 Bxe3 20. Nxe3 Ncd4 21. Nxf5 Nxf5 22. Rh3 Rxe2 23. Rxh4 Nxh4 {0-1 Hoffmann,D (1656)-Sorgen,H (1827) Leverkusen-ch op 2005 (3)}) 12. Qxf3 {[%emt 0:00:06]} Nd4 {[%emt 0:00:01]} 13. Qf2 {[%emt 0:00:08]} Rb8 {[%emt 0:00:30]} 14. Be3 {[%emt 0:01:35]} b5 {[%emt 0:00:21]} 15. Ba2 {[%emt 0:00:02]} a5 {[%emt 0:00:18]} 16. Nd1 {[%emt 0:01:37]} b4 {[%emt 0:00:44]} 17. axb4 {[%emt 0:00:25]} axb4 {[%emt 0:00:02]} 18. c3 {[%emt 0:00:14]} Nc6 {[%emt 0:00:28]} 19. e5 {[%emt 0:02:07]} (19. Bd2 $15) 19... Qa5 {[%emt 0:02:36]} (19... dxe5 20. Bxc5 Re8 21. Bc4 $11) (19... Ra8 $1 $19 20. Qf3 Bb7 21. cxb4 cxb4) 20. exd6 {[%emt 0:02:45]} (20. cxb4 $17 cxb4 (20... Nxb4 21. Nc3 $17) 21. Rc1) 20... b3 $19 {[%emt 0:00:04]} (20... bxc3 21. Nxc3 $11 (21. Bxc5 $2 cxb2 22. Rb1 Qxa2 $19) (21. bxc3 Ba6 $11) (21. Bxc5 $2 cxb2 22. Rb1 Qxa2 $19) (21. bxc3 Ba6 $11)) 21. Bxc5 {[%emt 0:00:10]} Bd7 {[%emt 0:00:49]} 22. d4 {[%emt 0:00:37]} bxa2 {[%emt 0:01:57]} ({Much less strong is} 22... Qa8 23. Ne3 bxa2 24. b4 $15) (22... Qa6 $17 {[%cal Ob8a8] aiming for ...Ra8!} 23. h3 Rb5 (23... bxa2 24. b4 $17) 24. Bxb3 (24. c4 $2 Rxc5 25. dxc5 bxa2 $19) 24... Qxa1) 23. b4 $15 {[%emt 0:00:01]} Qb5 {[%emt 0:00:03]} 24. Rxa2 {[%emt 0:00:36]} Ra8 $1 {[%emt 0:00:04]} 25. Rxa8 {[%emt 0:00:03]} ({White should try} 25. Re1 $15) 25... Rxa8 $17 {[%emt 0:00:01]} 26. Ne3 {[%emt 0:00:16] [#]} Qd3 $1 {[%emt 0:00:27]} 27. Rc1 {[%emt 0:00:42]} Nd8 {[%emt 0:00:24]} 28. h3 {[%emt 0:00:23]} (28. Ng4 $17 {is a better defense.}) 28... Bc6 {[%emt 0:00:01]} 29. Kh2 {[%emt 0:00:16]} Qe4 {[%emt 0:00:51]} 30. Re1 {[%emt 0:00:10]} Qd3 {[%emt 0:00:55]} ({Better is} 30... h5 $17 {And now ...Bh6 would win.} 31. Ng4 Qd3) 31. Qc2 {[%emt 0:00:17]} (31. Rc1 $1 $11) 31... Qxc2 $17 {[%emt 0:00:50]} 32. Nxc2 {[%emt 0:00:01]} Ra2 {[%emt 0:00:01]} 33. Ne3 {[%emt 0:00:01]} Bh6 {[%emt 0:00:01]} 34. Kg3 {[%emt 0:00:11]} g5 {[%emt 0:00:11]} (34... f5 $17 35. h4 Kf7) 35. fxg5 {[%emt 0:00:08]} (35. f5 $11 {remains equal.}) 35... Bxg5 $17 {[%emt 0:00:01]} 36. d5 {[%emt 0:00:05]} (36. h4 $17 Bxe3 37. Rxe3) 36... exd5 $19 {[%emt 0:00:34]} (36... Bxd5 $2 {loses.} 37. Nxd5 exd5 38. Re8+ Kg7 39. Bd4+ Kg6 40. h4 $18) 37. Nf5 {[%emt 0:00:01] [#]} Ne6 $1 {[%emt 0:00:02]} 38. Be3 {[%emt 0:00:10]} (38. Ne7+ {was called for.} Bxe7 39. dxe7) 38... Bd8 $19 {[%emt 0:00:34]} 39. Bd4 {[%emt 0:00:02]} Ra3 {[%emt 0:00:31]} 40. Kh2 {[%emt 0:00:01]} Kf8 {[%emt 0:00:17]} 41. Be5 {[%emt 0:00:17]} Ke8 {[%emt 0:00:05]} 42. Rf1 {[%emt 0:00:08]} Ra2 {[%emt 0:00:06]} 43. Bd4 {[%emt 0:00:08]} Bb5 {[%emt 0:00:16]} 44. Re1 {[%emt 0:00:03]} (44. Rf3 $142) 44... Kd7 {[%emt 0:00:04]} 45. Re3 {[%emt 0:00:05]} Bf1 {[%emt 0:00:06]} 46. Kg1 {[%emt 0:00:05]} (46. Rg3 $142) 46... Bxg2 $19 {[%emt 0:00:04]} ({And not} 46... Rxg2+ 47. Kxf1 Ra2 48. Rd3 $14) 47. Rg3 {[%emt 0:00:08]} Be4 {[%emt 0:00:02]} 48. Nh6 {[%emt 0:00:04]} Bh4 {[%emt 0:00:04]} 49. Rg4 {[%emt 0:00:05]} Ra1+ {[%emt 0:00:01]} 50. Kh2 {[%emt 0:00:03]} Rh1# {[%emt 0:00:02]} 0-1

[Event "Polish University-ch Teams 2024"]
[Site "Lublin"]
[Date "2024.02.25"]
[Round "7.8"]
[White "Szustakowski, Antoni"]
[Black "Jarocka, Liwia"]
[Result "1-0"]
[ECO "E54"]
[WhiteElo "2354"]
[BlackElo "2199"]
[Annotator "TA"]
[PlyCount "117"]
[EventDate "2024.02.22"]
[EventType "team-tourn"]
[EventCountry "POL"]
[SourceTitle "playchess.com"]
[Source "ChessBase"]
[SourceQuality "1"]
[TimeControl "900+5"]

{[%evp 26,117,21,15,72,64,56,31,43,37,93,28,93,6,72,14,14,0,68,22,25,13,26,0,10,4,13,0,0,0,0,0,-2,-26,-19,-10,0,0,0,0,145,139,219,152,160,159,158,177,159,173,154,177,172,169,181,181,227,222,211,203,440,433,416,391,378,367,587,576,523,491,430,430,729,751,759,604,645,695,5320,4706,5401,3875,2428,2689,6091,5887,29973,29976,29974,29975,29973,29974,29995,29996]} 1. d4 {[%emt 0:00:02]} d5 {[%emt 0:00:01]} 2. c4 {[%emt 0:00:02]} e6 {[%emt 0:00:03]} 3. Nf3 {[%emt 0:00:08]} Nf6 {[%emt 0:00:01]} 4. e3 {[%emt 0:00:01]} c5 {[%emt 0:00:35]} 5. Nc3 {[%emt 0:00:22]} cxd4 {[%emt 0:00:13]} 6. exd4 {[%emt 0:00:14]} Bb4 {[%emt 0:00:24]} 7. Bd3 {[%emt 0:00:17]} dxc4 {[%emt 0:00:09]} 8. Bxc4 {[%emt 0:00:01]} O-O {[%emt 0:00:04]} 9. O-O {[%emt 0:00:06]} b6 {[%emt 0:00:15]} 10. Bg5 {[%emt 0:00:58]} Bb7 {[%emt 0:00:11]} 11. Ne5 {[%emt 0:00:39]} Bxc3 {[%emt 0:02:42]} 12. bxc3 {[%emt 0:00:03]} Nbd7 {[%emt 0:00:01]} 13. Qe2 {[%emt 0:03:25]} Qc7 {[%emt 0:00:17]} 14. Nxd7 $1 {[%emt 0:01:12]} Qxd7 {[%emt 0:00:38]} (14... Nxd7 $11 15. Rac1 h6) 15. Bxf6 $16 {[%emt 0:02:14]} gxf6 {[%emt 0:00:01]} 16. Qg4+ {[%emt 0:00:30]} Kh8 {[%emt 0:00:01] White is slightly better.} 17. Qh4 {[%emt 0:00:01]} f5 {[%emt 0:00:01]} (17... Qd8 $14) 18. Qf6+ {[%emt 0:01:38]} Kg8 {[%emt 0:00:01] [#]} 19. d5 {[%emt 0:00:24] White is more active.} Bxd5 {[%emt 0:03:52]} (19... exd5 $11 20. Qg5+ Kh8) 20. Qg5+ {[%emt 0:00:02]} (20. Rad1 $16 {Strongly threatening Rd3.} Rac8 (20... Qd8 21. Qh6 $16) 21. Bxd5 exd5 22. Rd3) 20... Kh8 $11 {[%emt 0:00:03]} 21. Qf6+ {[%emt 0:00:01]} (21. Bxd5 $11 exd5 22. Rad1) 21... Kg8 $14 {[%emt 0:00:01]} 22. Bxd5 {[%emt 0:01:15]} (22. Rad1 $14 Qd8 23. Qe5 (23. Qh6 Kh8 $16)) 22... exd5 $11 {[%emt 0:00:31]} (22... Qxd5 23. Rad1 Qc5 24. Rfe1 $18) 23. Qg5+ {[%emt 0:00:01]} Kh8 {[%emt 0:00:01]} 24. Qf6+ {[%emt 0:00:01][%mdl 1024] White has compensation.} Kg8 {[%emt 0:00:01]} 25. Rad1 {[%emt 0:00:17][%cal Ba1d1,Bd1d3,Bd3f3,Bf3f4,Bf4f7,Bf7a7,Ba7e7,Be7e4][%mdl 32] And now Rd3 would win.} Qe6 {[%emt 0:00:30]} 26. Qd4 {[%emt 0:00:41][%cal Of1e1]} Rfe8 {[%emt 0:01:35]} 27. Rd3 {[%emt 0:00:31] Rg3+ is the strong threat.} (27. Qxd5 Rac8 $16) 27... Qe5 {[%emt 0:00:34]} 28. Qh4 {[%emt 0:00:06]} Re6 {[%emt 0:01:13]} 29. Rf3 {[%emt 0:00:32]} Rc8 {[%emt 0:01:16]} 30. Qh5 {[%emt 0:00:04]} f4 {[%emt 0:00:32]} (30... Rxc3 31. Rxf5 Qc7 32. g3) 31. Qg4+ {[%emt 0:00:01]} Kh8 {[%emt 0:00:10]} 32. Rxf4 {[%emt 0:00:06]} Rec6 {[%emt 0:01:04]} (32... h5 $11 {remains equal.} 33. Qf5 Qxf5 34. Rxf5 Kg7) 33. Rxf7 $16 {[%emt 0:00:01]} Rg8 {[%emt 0:00:28]} (33... R6c7 $16 {might work better.} 34. g3 Rxf7 35. Qxc8+ Kg7 36. Qg4+ Kf8) 34. Qh4 {[%emt 0:00:18]} Qe4 {[%emt 0:00:04]} 35. Qxe4 {[%emt 0:00:16]} dxe4 {[%emt 0:00:01]} 36. Rxa7 {[%emt 0:00:03]} Rxc3 {[%emt 0:00:01][%mdl 4096] Endgame. KRR-KRR} 37. Re7 {[%emt 0:00:06]} Rc2 {[%emt 0:00:16]} 38. Rxe4 {[%emt 0:00:03]} Rxa2 {[%emt 0:00:01] [#]} 39. Rb4 $1 {[%emt 0:00:02] Prevents Rb2} Rg6 {[%emt 0:00:03]} 40. Rfb1 {[%emt 0:00:36]} Rf6 {[%emt 0:00:06]} (40... Re6 {was worth a try.} 41. g3 (41. Rxb6 $2 Rxb6 42. Rd1 h6 $19) 41... Ree2) 41. f3 $18 {[%emt 0:00:23][%cal Bf2f3,Bf3f4,Bf4f5][%mdl 32]} (41. Rxb6 $2 Rxb6 (41... Raxf2 42. Rb8+ Kg7 43. h3 $14) 42. Rc1 Rbb2 $19) 41... Rg6 {[%emt 0:00:07]} 42. R4b2 {[%emt 0:00:04]} (42. Rxb6 Rgxg2+ (42... Raxg2+ 43. Kh1 $11) 43. Kh1 Rxh2+ 44. Kg1 Rag2+ 45. Kf1 Ra2 $11) 42... Rxb2 {[%emt 0:00:15]} (42... Ra6 {is a better defense.} 43. h3 Kg7) 43. Rxb2 {[%emt 0:00:01] KR-KR} Kg7 {[%emt 0:00:01]} 44. Kf2 {[%emt 0:00:01]} Rc6 {[%emt 0:00:01]} 45. f4 {[%emt 0:00:07]} Kf6 {[%emt 0:00:01]} (45... h5 {keeps fighting.} 46. Kg3 Rf6) 46. g4 {[%emt 0:00:02]} Ke6 {[%emt 0:00:02]} 47. Ke3 {[%emt 0:00:12]} Kd5 {[%emt 0:00:08]} 48. f5 {[%emt 0:00:01]} Ke5 {[%emt 0:00:15]} (48... Rc4 $142 49. Kf3 (49. Rxb6 Rxg4 50. Re6 Rh4 $11) 49... Ke5) 49. Rb5+ {[%emt 0:00:04]} Kf6 {[%emt 0:00:10]} 50. Kf4 {[%emt 0:00:01]} Rc4+ {[%emt 0:00:01]} 51. Kg3 {[%emt 0:00:01]} Kg5 {[%emt 0:00:02]} 52. h4+ {[%emt 0:00:02]} ({Worse is} 52. Rxb6 Rxg4+ 53. Kf3 Rc4 $11 (53... Kxf5 54. Rb5+ Kf6 55. Kxg4 h6 56. Rb6+ Ke5 57. Rxh6 Ke4 58. Rg6)) 52... Kf6 {[%emt 0:00:04]} 53. Rxb6+ {[%emt 0:00:01]} Kf7 {[%emt 0:00:00]} 54. g5 {[%emt 0:00:06][%cal Bg4g5,Bg5g6][%mdl 32] Threatens to win with h5.} Kg7 {[%emt 0:00:01]} 55. Rb3 {[%emt 0:00:16]} h5 {[%emt 0:00:05]} 56. Rb7+ {[%emt 0:00:11] White mates.} Kg8 {[%emt 0:00:02]} 57. f6 {[%emt 0:00:02]} Rg4+ {[%emt 0:00:04]} 58. Kf3 {[%emt 0:00:01]} Rxh4 {[%emt 0:00:02]} 59. g6 {[%emt 0:00:01] Weighted Error Value: White=0.17 (very precise) /Black=0.55.  Mistake:       	White=4     	Black=8      Inaccurate:     	White=1     	Black=2      OK:         	White=13    	Black=9      Best:        	White=6     	---} 1-0

[Event "Polish University-ch Teams 2024"]
[Site "Lublin"]
[Date "2024.02.25"]
[Round "7.9"]
[White "Golecki, Jan"]
[Black "Koziorowicz, Michal"]
[Result "1-0"]
[ECO "B53"]
[WhiteElo "2185"]
[BlackElo "2324"]
[Annotator "TA"]
[PlyCount "89"]
[EventDate "2024.02.22"]
[EventType "team-tourn"]
[EventCountry "POL"]
[SourceTitle "playchess.com"]
[Source "ChessBase"]
[SourceQuality "1"]
[TimeControl "900+5"]

{[%evp 10,89,31,35,34,22,29,20,32,7,33,13,26,16,24,24,16,21,68,66,100,82,119,93,126,145,198,208,190,185,198,196,191,152,197,188,398,418,406,416,415,359,327,340,462,447,460,475,465,461,479,483,580,580,642,664,788,782,1130,1063,999,960,921,599,1566,1085,2677,2335,1301,1037,862,715,29969,29972,5189,1807,29975,29976,29971,29976,29973,29974]} 1. e4 {[%emt 0:00:02]} c5 {[%emt 0:00:01]} 2. Nf3 {[%emt 0:00:02]} d6 {[%emt 0:00:00]} 3. d4 {[%emt 0:00:00]} cxd4 {[%emt 0:00:01]} 4. Qxd4 {[%emt 0:00:01]} a6 {[%emt 0:00:03]} 5. c4 {[%emt 0:00:02]} Nc6 {[%emt 0:00:01]} 6. Qe3 {[%emt 0:00:00]} g6 {[%emt 0:00:03]} 7. Be2 {[%emt 0:00:01]} Bg7 {[%emt 0:00:02]} 8. O-O {[%emt 0:00:02]} Nf6 {[%emt 0:00:03] The position is equal.} 9. Rd1 {[%emt 0:00:01]} O-O {[%emt 0:00:06]} (9... Ng4 {feels hotter.} 10. Qb3 Na5 11. Qa3 Qb6) 10. h3 {[%emt 0:00:01]} Nd7 {[%emt 0:00:24]} 11. Nc3 {[%emt 0:00:02]} Nc5 {[%emt 0:00:13]} 12. Rb1 {[%emt 0:00:34]} a5 {[%emt 0:00:07]} 13. b3 {[%emt 0:00:06]} Bd7 {[%emt 0:01:04]} (13... Bxc3 $11 {deserves consideration.} 14. Qxc3 Nxe4) 14. Bb2 $14 {[%emt 0:01:03]} a4 {[%emt 0:00:35] White stays focused until the end.} 15. Nd5 {[%emt 0:00:01] Hoping for b4.} axb3 {[%emt 0:00:31]} 16. axb3 {[%emt 0:00:18][%cal Ba2b3,Bb3b4][%mdl 32]} e5 {[%emt 0:01:34][%cal Be7e5,Be5d4][%mdl 32]} 17. b4 {[%emt 0:00:35] White is more active.} Ne6 {[%emt 0:00:02] [#]} (17... Na4 $16 {was worth a try.}) 18. Nb6 $1 $18 {[%emt 0:00:17]} Ncd4 {[%emt 0:02:55]} 19. Nxa8 {[%emt 0:00:35]} Qxa8 {[%emt 0:00:13]} 20. Nxd4 {[%emt 0:00:13]} exd4 {[%emt 0:00:19]} 21. Qa3 {[%emt 0:00:42]} Qd8 {[%emt 0:00:17]} 22. Bg4 {[%emt 0:00:09] Bxe6 is the strong threat.} f5 $2 {[%emt 0:01:05]} (22... Nf4 {was necessary.}) 23. exf5 {[%emt 0:00:02]} gxf5 {[%emt 0:00:01]} 24. Bf3 {[%emt 0:00:01]} Bc6 {[%emt 0:00:39]} 25. Bd5 {[%emt 0:00:23]} Bxd5 {[%emt 0:00:53]} 26. cxd5 {[%emt 0:00:01]} Nc7 {[%emt 0:00:10]} 27. Bxd4 {[%emt 0:01:05]} Nb5 {[%emt 0:00:12]} 28. Qg3 {[%emt 0:00:01][%csl Gd4][%cal Rg3g7]} Nxd4 {[%emt 0:00:04]} 29. Rxd4 {[%emt 0:00:01]} Kh8 {[%emt 0:00:15]} 30. Rc4 {[%emt 0:00:02]} Rg8 {[%emt 0:00:41]} 31. Qf3 {[%emt 0:00:20]} Qg5 {[%emt 0:01:56]} 32. Rbc1 {[%emt 0:00:47]} Bd4 {[%emt 0:00:19]} 33. Rc8 {[%emt 0:00:17]} b5 {[%emt 0:00:42]} 34. Rxg8+ {[%emt 0:00:58]} Kxg8 {[%emt 0:00:01][%cal Bh8g8,Bg8g7,Bg7h6][%mdl 4128] Endgame. KQR-KQB} 35. Rc8+ {[%emt 0:00:02]} Kg7 {[%emt 0:00:08] [#]} 36. h4 $1 {[%emt 0:00:11][%cal Bh3h4,Bh4h5][%mdl 32]} Qg6 {[%emt 0:01:32]} (36... Qg4 37. Qxg4+) 37. Qe2 {[%emt 0:00:17] Rc7+ would now be deadly.} Be5 {[%emt 0:00:32]} 38. Rc7+ {[%emt 0:01:15]} Kh6 {[%emt 0:00:02]} 39. h5 {[%emt 0:00:24]} Qg5 {[%emt 0:00:08]} 40. Qe3 {[%emt 0:00:09]} f4 {[%emt 0:00:14]} 41. Qe4 {[%emt 0:00:02][%csl Ge4][%cal Rc7h7]} Bg7 {[%emt 0:00:09]} 42. Rf7 {[%emt 0:00:38]} (42. Qe6+ $142 Kxh5 43. Rf7 (43. Qxd6 f3 $18) (43. Qh3+ Kg6 $18)) 42... Qxh5 {[%emt 0:00:12]} 43. Qe6+ {[%emt 0:00:24] White mates.} Qg6 {[%emt 0:00:04]} 44. Rxf4 {[%emt 0:00:12]} Qxe6 {[%emt 0:00:06]} 45. dxe6 {[%emt 0:00:02] Weighted Error Value: White=0.26 (precise) /Black=0.38.  Mistake:       	---       	Black=3      Inaccurate:     	---       	Black=6      OK:         	White=16    	Black=9      Best:        	White=1     	---        Strong:       	White=1     	---} 1-0

[Event "Polish University-ch Teams 2024"]
[Site "Lublin"]
[Date "2024.02.25"]
[Round "7.10"]
[White "Karpus, Michal"]
[Black "Leskiewicz, Ignacy"]
[Result "0-1"]
[ECO "C41"]
[WhiteElo "2243"]
[BlackElo "2180"]
[Annotator "TA"]
[PlyCount "44"]
[EventDate "2024.02.22"]
[EventType "team-tourn"]
[EventCountry "POL"]
[SourceTitle "playchess.com"]
[Source "ChessBase"]
[SourceQuality "1"]
[TimeControl "900+5"]

{[%evp 9,44,21,50,31,35,36,47,0,52,54,91,62,79,18,2,-8,0,-41,-40,-71,-59,-54,-61,-69,-64,-71,-36,-92,-82,-185,-137,-135,-126,-362,-160,-236,-204]} 1. e4 {[%emt 0:00:01]} d6 {[%emt 0:00:02]} 2. d4 {[%emt 0:00:02]} Nf6 {[%emt 0:00:01]} 3. Nc3 {[%emt 0:00:01]} e5 {[%emt 0:00:02]} 4. Nf3 {[%emt 0:00:03]} Nbd7 {[%emt 0:00:01]} 5. Rg1 {[%emt 0:00:21]} exd4 {[%emt 0:03:39]} 6. Qxd4 {[%emt 0:00:42]} c6 {[%emt 0:01:56]} 7. Bf4 {[%emt 0:01:13]} Nc5 {[%emt 0:02:02]} 8. Bg3 {[%emt 0:02:42]} (8. O-O-O $14 {was preferrable.}) 8... Be6 {[%emt 0:01:23]} ({Black should play} 8... Be7 $11) 9. O-O-O $14 {[%emt 0:01:10][%cal Ob2b4]} Qa5 {[%emt 0:02:01]} 10. a3 {[%emt 0:03:31][%cal Of3d2]} ({Don't play} 10. Bxd6 $6 Bxd6 11. Qxd6 Nfxe4 12. Nxe4 Nxe4 $11) 10... O-O-O {[%emt 0:00:48]} 11. Ng5 {[%emt 0:02:35]} (11. Be2 $16) 11... Be7 $11 {[%emt 0:00:14]} 12. Nxe6 {[%emt 0:00:10]} Nxe6 {[%emt 0:00:11]} 13. Qc4 {[%emt 0:00:29]} Nh5 {[%emt 0:00:36]} 14. Rd5 {[%emt 0:01:30]} Bg5+ {[%emt 0:00:45]} 15. Kb1 {[%emt 0:01:25]} Qc7 {[%emt 0:00:07]} 16. Rd1 {[%emt 0:00:23]} Nxg3 {[%emt 0:00:30]} 17. hxg3 {[%emt 0:00:01]} Qb6 {[%emt 0:00:14]} 18. Qe2 {[%emt 0:00:10]} (18. Be2 $15) 18... Bf6 $17 {[%emt 0:00:06]} 19. Rd3 {[%emt 0:00:11]} (19. Qd2 $17) 19... Nc5 {[%emt 0:00:18]} ({Black should try} 19... Rhe8 $19 20. Re3 Nc5 21. Qg4+ Rd7) 20. Rf3 {[%emt 0:00:05]} Rhe8 {[%emt 0:00:07] Black is more active.} 21. Rh1 $2 {[%emt 0:00:05] [#]} (21. Rxf6 $17 {is the only way for White.} gxf6 22. Qg4+ Kb8 23. Qf4) 21... Rxe4 {[%emt 0:00:05]} 22. Qd1 {[%emt 0:00:05] [#]} (22. Qd2 $17 {was worth a try.}) 22... Rde8 $1 {[%emt 0:00:56] Weighted Error Value: White=0.46/Black=0.33.  Loses game:     	White=1     	---        Missed win:     	---       	Black=1      Mistake:       	White=5     	Black=2      Inaccurate:     	White=3     	Black=2      OK:         	White=4     	Black=5      Best:        	White=1     	Black=2} 0-1